[Event "Czech Extraliga 2023-24"]
[Site "Czech Republic"]
[Date "2024.02.10"]
[Round "7.1"]
[White "NOV3 Harikrishna Pentala GM"]
[Black "LIN1 Piorun Kacper GM"]
[Result "1/2-1/2"]
[ECO "C67"]
[WhiteElo "2716"]
[BlackElo "2593"]
[Annotator "TA"]
[PlyCount "81"]
[EventDate "2023.10.14"]
[EventCountry "CZE"]
[SourceTitle "playchess.com"]
[Source "ChessBase"]
[SourceQuality "1"]
[TimeControl "40/5400+30:1800+30"]

{[%evp 17,81,8,5,18,19,8,27,11,18,15,16,11,23,14,7,0,7,-18,-25,-24,-26,-33,-16,-10,-16,-12,0,0,0,0,0,0,0,0,0,0,0,0,0,0,0,0,4,3,8,3,3,3,3,3,3,3,3,3,3,3,3,3,10,32,39,10,10,10,18,18]} 1. e4 {[%emt 0:00:08]} e5 {[%emt 0:00:36]} 2. Nf3 {[%emt 0:00:22]} Nc6 {[%emt 0:00:10]} 3. Bb5 {[%emt 0:00:25]} Nf6 {[%emt 0:00:47]} 4. O-O {[%emt 0:01:16]} Nxe4 {[%emt 0:00:27]} 5. d4 {[%emt 0:00:05]} Nd6 {[%emt 0:00:20]} 6. Bxc6 {[%emt 0:00:10]} dxc6 {[%emt 0:00:06]} 7. dxe5 {[%emt 0:00:16]} Nf5 {[%emt 0:00:11]} 8. Qxd8+ {[%emt 0:00:19]} Kxd8 {[%emt 0:00:05]} 9. Nc3 {[%emt 0:01:09]} Be7 {[%emt 0:06:21]} 10. h3 {[%emt 0:03:40]} Nh4 {[%emt 0:08:48] [#] ...Nxf3+ would now be deadly.} 11. Nxh4 {[%emt 0:06:21]} Bxh4 {[%emt 0:00:07]} 12. Be3 {[%emt 0:00:31] White has an edge.} Ke8 {[%emt 0:09:24]} 13. Rad1 {[%emt 0:05:46]} h5 {[%emt 0:01:57] Black is weak on the dark squares} 14. Ne2 {[%emt 0:08:38]} Be7 {[%emt 0:05:00]} 15. Rfe1 {[%emt 0:03:46]} Bd7 {[%emt 0:15:32]} 16. Nd4 {[%emt 0:03:05]} Rd8 {[%emt 0:07:48]} 17. e6 {[%emt 0:04:43]} Bxe6 {[%emt 0:00:17]} 18. Nxe6 {[%emt 0:09:26]} fxe6 {[%emt 0:00:10]} 19. Rxd8+ {[%emt 0:06:44]} Bxd8 $11 {[%emt 0:01:06][%mdl 4096] Endgame. KRB-KRB} 20. Bd4 {[%emt 0:02:31]} ({Reject} 20. Bxa7 b6 21. Rd1 (21. Rxe6+ $2 {loses.} Kd7 $19) 21... Rf8 $17) 20... Kf7 {[%emt 0:00:39]} 21. Be5 {[%emt 0:00:15]} Bf6 {[%emt 0:03:34]} 22. Bxc7 {[%emt 0:00:35]} Rc8 {[%emt 0:00:39]} 23. Bf4 {[%emt 0:00:15]} Rd8 {[%emt 0:00:07]} 24. Be3 {[%emt 0:02:10]} Rd5 {[%emt 0:11:05]} 25. b3 {[%emt 0:03:23]} Bc3 {[%emt 0:00:56]} 26. Rb1 {[%emt 0:00:07]} Ra5 {[%emt 0:03:37]} 27. a4 {[%emt 0:00:50]} b5 {[%emt 0:00:24]} 28. axb5 {[%emt 0:06:52]} cxb5 {[%emt 0:00:06]} 29. Kf1 {[%emt 0:00:37]} Ra2 {[%emt 0:00:57]} 30. Ke2 {[%emt 0:01:44]} Rxc2+ {[%emt 0:03:56]} 31. Kd3 {[%emt 0:00:21]} Rb2 {[%emt 0:00:04]} 32. Rxb2 {[%emt 0:01:22]} Bxb2 {[%emt 0:00:07]} 33. Bxa7 {[%emt 0:00:07] KB-KB} e5 {[%emt 0:00:31]} 34. Ke4 {[%emt 0:03:51] [#] Black must now prevent Kd5.} Ke6 {[%emt 0:00:06]} 35. Bc5 {[%emt 0:00:59]} Bc3 {[%emt 0:00:19]} 36. f3 {[%emt 0:01:04]} g6 {[%emt 0:00:10]} 37. Bf8 {[%emt 0:03:14]} Be1 {[%emt 0:00:27]} 38. Bh6 {[%emt 0:01:09]} Ba5 {[%emt 0:02:35]} 39. g3 {[%emt 0:00:52][%cal Bg2g3,Bg3g4][%mdl 32]} Be1 {[%emt 0:02:04]} 40. g4 {[%emt 0:00:22]} Ba5 {[%emt 0:00:07]} 41. Bg7 {[%emt 0:31:40] An uneventful encounter.   Weighted Error Value: White=0.03 (flawless) /Black=0.01 (flawless) .  Inaccurate:     	White=1     	---        OK:         	White=14    	Black=17     Best:        	White=3     	---} 1/2-1/2

[Event "Czech Extraliga 2023-24"]
[Site "Czech Republic"]
[Date "2024.02.10"]
[Round "7.1"]
[White "Ponomariov, Ruslan"]
[Black "Saric, Ivan"]
[Result "1/2-1/2"]
[ECO "E48"]
[WhiteElo "2647"]
[BlackElo "2689"]
[Annotator "TA"]
[PlyCount "66"]
[EventDate "2023.10.14"]
[EventCountry "CZE"]
[SourceTitle "playchess.com"]
[Source "ChessBase"]
[SourceQuality "1"]
[TimeControl "40/5400+30:1800+30"]

{[%evp 11,66,9,7,-17,-10,-22,-7,-27,-25,-18,-30,-46,-45,-38,-31,-66,-14,-22,-10,-10,0,-8,18,0,10,0,10,0,40,36,25,37,99,79,85,16,35,11,23,17,24,14,14,26,14,9,7,0,0,0,0,0,0,0,0,0,0]} 1. d4 {[%emt 0:00:04]} Nf6 {[%emt 0:00:11]} 2. c4 {[%emt 0:00:10]} e6 {[%emt 0:00:54]} 3. Nc3 {[%emt 0:00:29]} Bb4 {[%emt 0:00:16]} 4. e3 {[%emt 0:00:38]} O-O {[%emt 0:00:10]} 5. Bd3 {[%emt 0:00:30]} d5 {[%emt 0:00:34]} 6. cxd5 {[%emt 0:00:56]} exd5 {[%emt 0:00:17]} 7. a3 {[%emt 0:00:16]} Bd6 {[%emt 0:00:50]} 8. Qc2 {[%emt 0:00:28]} c6 {[%emt 0:04:18]} 9. Nge2 {[%emt 0:00:56]} Re8 {[%emt 0:00:25]} 10. Bd2 {[%emt 0:00:37]} b6 {[%emt 0:01:17]} 11. b4 {[%emt 0:25:26]} a5 {[%emt 0:03:24]} 12. bxa5 {[%emt 0:02:27]} Rxa5 {[%emt 0:00:23]} 13. a4 {[%emt 0:00:11]} Ba6 {[%emt 0:13:49]} (13... Ra8 $15) 14. Bxa6 {[%emt 0:05:26]} Rxa6 {[%emt 0:00:18]} ({Much weaker is} 14... Nxa6 $6 15. Na2 $16) 15. O-O {[%emt 0:00:24]} Nbd7 {[%emt 0:00:56]} 16. f3 {[%emt 0:03:41]} c5 {[%emt 0:04:03]} 17. Rab1 {[%emt 0:03:20]} Nf8 {[%emt 0:09:53]} 18. Kh1 {[%emt 0:03:41]} Qa8 {[%emt 0:09:03]} 19. Qd3 {[%emt 0:11:24]} Ne6 {[%emt 0:01:52]} 20. Be1 {[%emt 0:01:17]} cxd4 {[%emt 0:22:15]} 21. exd4 {[%emt 0:00:18]} Nf4 {[%emt 0:00:21]} (21... Nc7 $14) 22. Nxf4 $16 {[%emt 0:00:21]} Bxf4 {[%emt 0:00:03] [#]} 23. Bf2 {[%emt 0:02:32]} (23. Bh4 $1 $16) 23... Qc8 {[%emt 0:00:40]} 24. Rfe1 {[%emt 0:02:16]} Rxe1+ {[%emt 0:02:03]} 25. Bxe1 {[%emt 0:00:28]} h6 {[%emt 0:04:35]} 26. Bh4 {[%emt 0:18:03]} Qc4 {[%emt 0:01:51]} 27. Qxc4 {[%emt 0:00:34]} dxc4 {[%emt 0:00:04]} 28. Bxf6 {[%emt 0:02:59] The position is equal.} gxf6 $11 {[%emt 0:00:08] KRB-KRN} 29. Rb4 {[%emt 0:00:06]} Bd2 {[%emt 0:00:07][%cal Ob6b5] [#] ...b5! is the strong threat.} 30. Rxc4 {[%emt 0:00:04]} Bxc3 {[%emt 0:00:03]} 31. Rxc3 {[%emt 0:00:05]} Rxa4 {[%emt 0:00:03] ( -> ...Ra1+)} 32. Kg1 {[%emt 0:00:07]} Rxd4 {[%emt 0:00:07]} 33. Rc6 {[%emt 0:00:05][%csl LRb6,LRf6]} Kg7 {[%emt 0:21:47] Weighted Error Value: White=0.14 (very precise) /Black=0.14 (very precise) .  Mistake:       	White=1     	Black=2      Inaccurate:     	White=1     	Black=2      OK:         	White=5     	Black=12     Best:        	White=2     	Black=1} 1/2-1/2

[Event "Czech Extraliga 2023-24"]
[Site "Czech Republic"]
[Date "2024.02.10"]
[Round "7.1"]
[White "Neiksans, Arturs"]
[Black "Haring, Filip"]
[Result "0-1"]
[ECO "E05"]
[WhiteElo "2588"]
[BlackElo "2432"]
[Annotator "TA"]
[PlyCount "78"]
[EventDate "2023.10.14"]
[EventCountry "CZE"]
[SourceTitle "playchess.com"]
[Source "ChessBase"]
[SourceQuality "1"]
[TimeControl "40/5400+30:1800+30"]

{[%evp 19,78,-30,-29,-54,-41,-45,-27,-62,-54,-102,-82,-117,-92,-151,-114,-143,-113,-160,-147,-249,-264,-230,-275,-246,-280,-272,-260,-267,-278,-246,-242,-236,-280,-290,-289,-280,-295,-298,-285,-274,-264,-266,-264,-260,-243,-400,-331,-433,-360,-393,-371,-564,-565,-673,-803,-812,-810,-29972,-29973,-29991,-29992]} 1. Nf3 {[%emt 0:00:03]} d5 {[%emt 0:00:40]} 2. g3 {[%emt 0:00:08]} Nf6 {[%emt 0:00:09]} 3. Bg2 {[%emt 0:00:09]} e6 {[%emt 0:00:36]} 4. O-O {[%emt 0:01:10]} Be7 {[%emt 0:00:16]} 5. d4 {[%emt 0:02:39]} O-O {[%emt 0:00:47]} 6. c4 {[%emt 0:00:06]} dxc4 {[%emt 0:02:07]} 7. Qc2 {[%emt 0:02:18]} a6 {[%emt 0:01:26]} 8. a4 {[%emt 0:00:53]} Bd7 {[%emt 0:00:41]} 9. Qxc4 {[%emt 0:01:00]} Bc6 {[%emt 0:00:09]} 10. Nc3 {[%emt 0:01:33] [#]} b5 $1 {[%emt 0:11:53]} 11. Qb3 {[%emt 0:09:13]} (11. axb5 $2 axb5 $19) (11. Qa2 b4) 11... b4 {[%emt 0:01:35]} 12. Nb1 {[%emt 0:00:06]} Bd5 {[%emt 0:03:45]} 13. Qc2 {[%emt 0:00:25] Black has an edge.} c5 {[%emt 0:05:24]} 14. dxc5 {[%emt 0:11:21] [#]} (14. Be3 $15 {is more appropriate.}) 14... Nbd7 $1 $17 {[%emt 0:01:21]} 15. c6 {[%emt 0:09:33] [#]} Rc8 $1 {[%emt 0:14:12]} 16. Be3 {[%emt 0:08:23]} (16. Nd4 $2 Ne5 17. Qd1 Bxg2 (17... Nxc6 18. Nxc6 Bxc6 19. Bxc6 $17) 18. Kxg2 Qd5+ (18... Nxc6 19. Nxc6 Rxc6 20. Nd2 $17) 19. Nf3 Qxc6 $19 (19... Nxc6 20. Bg5 $17)) (16. Qd1 $142 Bxc6 (16... Rxc6 17. Nbd2 $17) 17. a5) 16... Bxc6 {[%emt 0:11:24]} 17. Qd1 {[%emt 0:00:20]} Bc5 {[%emt 0:03:15]} 18. Qd3 {[%emt 0:13:05]} (18. Bxc5 $142 Nxc5 19. Nbd2) 18... Be4 {[%emt 0:07:17]} 19. Qxa6 {[%emt 0:03:53]} (19. Qd2 $17) 19... Bxe3 $19 {[%emt 0:02:01]} 20. fxe3 {[%emt 0:00:06]} Nc5 {[%emt 0:05:55]} 21. Qc4 {[%emt 0:05:26]} Nd5 {[%emt 0:00:31]} 22. Nbd2 {[%emt 0:10:12]} Nxe3 {[%emt 0:02:59]} 23. Qxb4 {[%emt 0:00:05]} Nc2 {[%emt 0:12:34]} 24. Qc4 {[%emt 0:00:13]} Bxf3 {[%emt 0:01:19]} 25. Nxf3 {[%emt 0:13:33]} Nxa1 {[%emt 0:00:07]} 26. Rxa1 {[%emt 0:00:04]} Qb6 {[%emt 0:00:09][%csl LRa4,LRb2] Hoping for ...Nb3+.} 27. Qb5 {[%emt 0:01:48]} Qa7 {[%emt 0:06:08] ( -> ...Nd3+)} (27... Nxa4+ 28. Qxb6 Nxb6 29. Ne1 $19) 28. e3 {[%emt 0:00:05]} Rb8 {[%emt 0:00:21]} 29. Qe2 {[%emt 0:00:09]} Nb3 {[%emt 0:01:39] Dodges Nd4} ({Not} 29... Nxa4 30. Nd4 $15) 30. Ra3 {[%emt 0:00:13]} Qc5 {[%emt 0:02:02]} 31. Bf1 {[%emt 0:01:47]} Rfd8 {[%emt 0:00:51]} 32. Kg2 $2 {[%emt 0:04:21]} (32. Ne1) 32... g6 {[%emt 0:01:40]} 33. Qf2 {[%emt 0:00:13]} Rb4 {[%emt 0:00:45][%cal Ob3d2]} 34. h4 {[%emt 0:00:21]} h6 {[%emt 0:00:27]} 35. Bb5 {[%emt 0:00:19]} (35. e4 $142) 35... Qc1 {[%emt 0:01:02]} 36. Ne5 {[%emt 0:02:20]} Rd2 {[%emt 0:00:06]} 37. Be2 {[%emt 0:00:04]} Qc7 {[%emt 0:00:10]} ({And not} 37... Qxb2 38. Qxf7+ Kh8 39. Nxg6#) 38. Ng4 {[%emt 0:01:20]} Rxg4 {[%emt 0:00:14]} ({Less strong is} 38... Rxb2 39. Nf6+ Kh8 40. Nd5 exd5 41. Qf6+ Kh7 42. Qxb2 $15) 39. Rxb3 {[%emt 0:00:04] [#]} Rxe2 $1 {[%emt 0:00:06][%mdl 512] Black took control after the opening.   Weighted Error Value: White=0.64/Black=0.10 (very precise) .  Mistake:       	White=6     	---        Inaccurate:     	White=3     	---        OK:         	White=8     	Black=14     Best:        	White=1     	Black=2      Strong:       	---       	Black=2} 0-1

[Event "Czech Extraliga 2023-24"]
[Site "Czech Republic"]
[Date "2024.02.10"]
[Round "7.1"]
[White "Warakomski, Tomasz"]
[Black "Korobov, Anton"]
[Result "1/2-1/2"]
[ECO "B90"]
[WhiteElo "2537"]
[BlackElo "2663"]
[Annotator "TA"]
[PlyCount "67"]
[EventDate "2023.10.14"]
[EventCountry "CZE"]
[SourceTitle "playchess.com"]
[Source "ChessBase"]
[SourceQuality "1"]
[TimeControl "40/5400+30:1800+30"]

{[%evp 12,67,12,16,18,11,27,9,67,0,106,114,116,105,112,81,87,72,83,79,81,76,69,0,0,12,0,25,27,27,47,0,0,-29,90,47,22,38,34,40,22,32,26,0,0,0,0,0,27,0,0,0,0,0,0,0,0,0]} 1. e4 {[%emt 0:00:03]} c5 {[%emt 0:00:10]} 2. Nf3 {[%emt 0:00:09]} d6 {[%emt 0:00:06]} 3. d4 {[%emt 0:00:05]} cxd4 {[%emt 0:00:06]} 4. Nxd4 {[%emt 0:00:05]} Nf6 {[%emt 0:00:07]} 5. Nc3 {[%emt 0:00:05]} a6 {[%emt 0:00:06]} 6. Bd3 {[%emt 0:00:52]} g6 {[%emt 0:00:24]} 7. f3 {[%emt 0:00:42] is now debated instead of 7.0-0. B90: Sicilian Najdorf: Unusual White 6th moves, 6 Be3 Ng4 and 6 Be3 e5.} e5 {[%emt 0:00:12]} 8. Nde2 {[%emt 0:08:28]} Be6 {[%emt 0:02:00]} 9. f4 $146 {[%emt 0:09:47]} ({Predecessor:} 9. Bg5 Be7 10. Qd2 Nbd7 11. Ng3 b5 12. a3 Rc8 13. O-O h5 14. h4 Nh7 15. Bxe7 Qxe7 16. Bxb5 axb5 17. Nxb5 O-O 18. Nxd6 Rcd8 19. Rfd1 Nc5 20. Qe3 Rxd6 {0-1 Nasuta,G (2563)-Klimkowski,J (2531) Speed Chess Poland blitz 2024 (1.7)}) 9... Bg7 {[%emt 0:06:40]} ({Better is} 9... exf4 $11 10. Nxf4 Nc6) 10. O-O {[%emt 0:00:26]} (10. f5 $14 Bc8 11. Bg5) 10... Nc6 {[%emt 0:13:56]} (10... exf4 $11 11. Nxf4 Nc6) 11. f5 $16 {[%emt 0:06:45]} gxf5 {[%emt 0:00:32]} 12. exf5 {[%emt 0:00:05]} Bd7 {[%emt 0:00:04]} 13. Bg5 {[%emt 0:00:22]} Ne7 {[%emt 0:02:12]} 14. Be4 {[%emt 0:04:17]} Qb6+ {[%emt 0:12:04]} 15. Kh1 {[%emt 0:00:03]} O-O-O {[%emt 0:16:24]} (15... Qxb2 $2 16. Qxd6 O-O-O 17. Bxf6 $18 (17. Qxe7 Nxe4 18. Nxe4 Bc6 $18)) (15... Nxe4 $2 16. Nxe4 f6 (16... Nxf5 $2 17. Rxf5 O-O 18. Nf6+ Bxf6 19. Rxf6 $18) 17. Bxf6 (17. Nxd6+ Kf8 $18) 17... Bxf6 18. Nxf6+ Kd8 19. Nxd7 Kxd7 20. f6 $18) 16. Bxf6 {[%emt 0:05:39]} Bxf6 {[%emt 0:00:02]} 17. Rf3 {[%emt 0:02:22]} (17. Nd5 $14 Nxd5 18. Bxd5) 17... Bc6 $1 $11 {[%emt 0:01:39]} 18. Nd5 $1 {[%emt 0:00:19]} Nxd5 {[%emt 0:04:12]} (18... Qxb2 $2 19. Nxe7+ (19. Nxf6 d5 $18) (19. Rb3 Qxa1 20. Qxa1 Bxd5 $18) 19... Bxe7 20. Bxc6 $18 (20. Rb3 Qxa1 21. Qxa1 Bxe4 $14)) 19. Bxd5 {[%emt 0:00:05]} e4 {[%emt 0:03:06]} (19... Qxb2 20. Bxc6 (20. Rb3 Qxa1 21. Qxa1 Bxd5 $14) 20... e4 (20... bxc6 $2 21. Rb3 $18) 21. Rb1 exf3 22. Rxb2 fxe2 23. Bxb7+ Kd7 24. Qxe2 Bxb2 25. Qc4 $18 (25. Bxa6 Be5 $18) (25. Qxa6 Ke7 $18)) 20. Rb3 {[%emt 0:00:19]} Qf2 {[%emt 0:02:58]} 21. Ng3 {[%emt 0:00:44]} (21. Bxc6 $14 bxc6 22. Qd2) 21... Rhg8 $11 {[%emt 0:01:12]} 22. Bxf7 {[%emt 0:17:45] [#]} Rxg3 {[%emt 0:08:05]} (22... e3 $1 $11 23. Qg1 Qxc2) 23. Be6+ {[%emt 0:00:55]} Kb8 {[%emt 0:07:32]} 24. Rxg3 {[%emt 0:07:48]} Be5 $1 {[%emt 0:04:16]} 25. Rb3 {[%emt 0:19:07]} e3 $1 {[%emt 0:00:22]} 26. Qg1 {[%emt 0:00:06]} Qxc2 {[%emt 0:00:12]} 27. Rxe3 {[%emt 0:00:13]} Bd4 $1 {[%emt 0:00:37]} 28. Rae1 $1 {[%emt 0:00:05]} Bxe3 {[%emt 0:00:23]} 29. Rxe3 {[%emt 0:00:04]} Qxb2 {[%emt 0:00:06]} 30. Qf1 {[%emt 0:02:11]} Bxg2+ {[%emt 0:02:11]} 31. Qxg2 {[%emt 0:00:05]} Qc1+ {[%emt 0:00:04]} 32. Qg1 {[%emt 0:00:02]} Qc6+ {[%emt 0:00:06]} 33. Qg2 {[%emt 0:00:04]} Qc1+ {[%emt 0:00:06]} 34. Qg1 {[%emt 0:00:36]} 1/2-1/2

[Event "Czech Extraliga 2023-24"]
[Site "Czech Republic"]
[Date "2024.02.10"]
[Round "7.1"]
[White "Kantans, Toms"]
[Black "Pechac, Jergus"]
[Result "1/2-1/2"]
[ECO "C60"]
[WhiteElo "2475"]
[BlackElo "2575"]
[Annotator "RC"]
[PlyCount "46"]
[EventDate "2023.10.14"]
[EventCountry "CZE"]
[SourceTitle "playchess.com"]
[Source "ChessBase"]
[SourceQuality "1"]
[TimeControl "40/5400+30:1800+30"]

1. e4 {[%emt 0:00:04]} e5 {[%emt 0:00:19]} 2. Nf3 {[%emt 0:00:10]} Nc6 {[%emt 0:00:06]} 3. Bb5 {[%emt 0:01:09]} Nge7 {[%emt 0:00:11]} 4. c3 {[%emt 0:02:33]} d5 {[%emt 0:00:48]} 5. Nxe5 {[%emt 0:09:19]} dxe4 {[%emt 0:00:08]} 6. d4 {[%emt 0:01:38]} exd3 {[%emt 0:00:15]} 7. Qf3 {[%emt 0:04:39]} Be6 {[%emt 0:00:08]} 8. Nxc6 {[%emt 0:03:47]} Nxc6 {[%emt 0:00:06]} 9. Bxc6+ {[%emt 0:00:06]} bxc6 {[%emt 0:00:05]} 10. Qxc6+ {[%emt 0:00:08]} Bd7 {[%emt 0:00:03]} 11. Qf3 {[%emt 0:00:08]} Bd6 {[%emt 0:00:24]} 12. O-O {[%emt 0:22:14]} O-O {[%emt 0:00:08]} 13. Bf4 {[%emt 0:01:13]} Bc6 {[%emt 0:27:10]} 14. Qxc6 {[%emt 0:04:28]} Bxf4 {[%emt 0:00:06]} 15. g3 {[%emt 0:01:45]} Bh6 {[%emt 0:07:06]} 16. Na3 {[%emt 0:02:53]} d2 {[%emt 0:02:58]} 17. Rad1 {[%emt 0:01:33]} Qd3 {[%emt 0:03:06]} 18. Qc4 {[%emt 0:12:58]} Qf3 {[%emt 0:00:49]} 19. Nb5 {[%emt 0:01:36]} c5 {[%emt 0:06:04]} 20. Nd6 {[%emt 0:05:10]} Rab8 {[%emt 0:02:28]} 21. b3 {[%emt 0:01:21]} Rb6 {[%emt 0:04:53]} 22. Qxc5 {[%emt 0:00:34]} Rc6 {[%emt 0:00:54]} 23. Qe5 {[%emt 0:00:06]} Rxc3 {[%emt 0:22:04]} 1/2-1/2

[Event "Czech Extraliga 2023-24"]
[Site "Czech Republic"]
[Date "2024.02.10"]
[Round "7.2"]
[White "L'Ami, Erwin"]
[Black "Samunenkov, Ihor"]
[Result "1/2-1/2"]
[ECO "D37"]
[WhiteElo "2627"]
[BlackElo "2533"]
[Annotator "TA"]
[PlyCount "91"]
[EventDate "2023.10.14"]
[EventCountry "CZE"]
[SourceTitle "playchess.com"]
[Source "ChessBase"]
[SourceQuality "1"]
[TimeControl "40/5400+30:1800+30"]

{[%evp 9,91,24,27,22,25,33,29,32,31,33,39,5,5,-1,12,10,22,10,10,-37,-33,-60,-61,-64,-57,-70,-57,-95,14,29,27,22,21,20,15,14,19,21,28,22,77,51,96,23,18,19,23,16,34,39,50,13,17,8,16,9,12,4,3,2,2,0,10,2,4,0,0,0,0,0,0,0,0,0,0,0,0,0,0,0,0,0,0,0]} 1. d4 {[%emt 0:00:13]} d5 {[%emt 0:00:19]} 2. c4 {[%emt 0:00:18]} e6 {[%emt 0:00:13]} 3. Nf3 {[%emt 0:00:23]} Nf6 {[%emt 0:00:10]} 4. Nc3 {[%emt 0:00:26]} a6 {[%emt 0:00:13]} 5. cxd5 {[%emt 0:00:52]} exd5 {[%emt 0:00:08]} 6. Bg5 {[%emt 0:00:07]} Be6 {[%emt 0:00:15]} 7. e3 {[%emt 0:00:17]} Nbd7 {[%emt 0:00:08]} 8. Bd3 {[%emt 0:00:12] White has an edge.} Bd6 {[%emt 0:00:11]} 9. O-O {[%emt 0:00:18]} c6 {[%emt 0:00:12]} 10. Rc1 {[%emt 0:00:09]} Qb8 {[%emt 0:10:19]} 11. Kh1 {[%emt 0:04:47]} Bg4 {[%emt 0:13:11][%cal Be6g4,Bg4h5,Bh5g6][%mdl 32]} 12. h3 {[%emt 0:02:43]} Bh5 {[%emt 0:02:39]} 13. g4 {[%emt 0:10:55]} Bg6 {[%emt 0:03:00]} 14. Bxf6 {[%emt 0:01:48]} (14. Nh4 $11) 14... Nxf6 $15 {[%emt 0:02:48]} 15. g5 {[%emt 0:00:49]} Ng8 {[%emt 0:14:12]} 16. Nh4 {[%emt 0:04:26]} Qc8 {[%emt 0:05:23]} (16... Bxd3 {simplifies} 17. Qxd3 Ne7 18. Nf5 Nxf5 19. Qxf5 h6) 17. Kg2 {[%emt 0:01:17]} Ne7 {[%emt 0:00:43]} (17... Bxd3 {simplifies} 18. Qxd3 Qd8 19. f4 h6) 18. f4 {[%emt 0:06:06]} Nf5 {[%emt 0:04:29]} (18... Qe6 $17 19. Qe2 Bxd3 20. Qxd3 O-O-O) 19. Nxf5 $11 {[%emt 0:03:48]} Bxf5 {[%emt 0:00:09]} 20. Bxf5 {[%emt 0:00:25]} Qxf5 {[%emt 0:00:10]} 21. Qg4 {[%emt 0:00:10]} Qd7 {[%emt 0:05:41]} 22. e4 {[%emt 0:05:11]} Qxg4+ {[%emt 0:11:42]} 23. hxg4 {[%emt 0:00:09]} dxe4 {[%emt 0:00:10]} 24. Nxe4 {[%emt 0:01:03]} O-O-O {[%emt 0:01:21]} (24... Be7 $11) 25. d5 $16 {[%emt 0:19:41] White is more active.} Rhe8 {[%emt 0:00:49]} 26. Nxd6+ {[%emt 0:02:32]} (26. Kf3 $16) 26... Rxd6 $11 {[%emt 0:00:10]} 27. dxc6 {[%emt 0:00:08]} bxc6 $16 {[%emt 0:02:02][%mdl 4096] Endgame. KRR-KRR} 28. Rf2 {[%emt 0:01:40]} Kb7 {[%emt 0:05:34]} 29. Rh1 {[%emt 0:05:42]} h6 {[%emt 0:02:25]} 30. Rh5 {[%emt 0:05:38]} hxg5 {[%emt 0:09:26] The position is equal.} 31. Rxg5 {[%emt 0:00:20]} g6 {[%emt 0:00:29]} 32. Re5 {[%emt 0:01:47]} Red8 {[%emt 0:00:29]} 33. Re7+ {[%emt 0:02:15]} R8d7 {[%emt 0:01:36]} 34. Rfe2 {[%emt 0:01:52]} Kc7 {[%emt 0:04:14]} 35. Kg3 {[%emt 0:03:31]} Rd4 {[%emt 0:00:33]} 36. R7e4 {[%emt 0:03:45]} c5 {[%emt 0:00:52][%cal Bc6c5,Bc5d4,Bd4d3,Bd3d2][%mdl 32]} 37. Rxd4 {[%emt 0:01:45]} cxd4 $11 {[%emt 0:00:39] KR-KR} 38. Kf3 {[%emt 0:01:06]} f5 {[%emt 0:00:30]} 39. gxf5 {[%emt 0:05:44]} gxf5 {[%emt 0:00:07]} 40. Re5 {[%emt 0:01:42]} d3 {[%emt 0:00:41] [#] ( -> ...d2)} 41. Re1 {[%emt 0:31:14]} d2 {[%emt 0:31:27]} 42. Rd1 {[%emt 0:00:13]} Rd4 {[%emt 0:00:23]} 43. Ke3 {[%emt 0:03:33]} Re4+ {[%emt 0:00:21]} 44. Kf3 {[%emt 0:00:40]} Rd4 {[%emt 0:00:08]} 45. Ke3 {[%emt 0:00:06][%csl LRd2,LRd4]} Re4+ {[%emt 0:00:07]} 46. Kf3 {[%emt 0:00:06] Weighted Error Value: White=0.11 (very precise) /Black=0.13 (very precise) .  Mistake:       	White=2     	Black=2      Inaccurate:     	White=4     	Black=1      OK:         	White=15    	Black=19     Best:        	White=1     	Black=2} 1/2-1/2

[Event "Czech Extraliga 2023-24"]
[Site "Czech Republic"]
[Date "2024.02.10"]
[Round "7.2"]
[White "Bernadskiy, Vitaliy"]
[Black "Baidetskyi, Valentin"]
[Result "1/2-1/2"]
[ECO "E94"]
[WhiteElo "2566"]
[BlackElo "2499"]
[Annotator "TA"]
[PlyCount "58"]
[EventDate "2023.10.14"]
[EventCountry "CZE"]
[SourceTitle "playchess.com"]
[Source "ChessBase"]
[SourceQuality "1"]
[TimeControl "40/5400+30:1800+30"]

{[%evp 12,58,26,27,43,25,50,58,75,46,75,88,72,41,33,38,22,39,40,28,35,27,48,5,10,27,12,7,10,0,0,-17,-10,-10,0,0,0,0,0,0,0,-7,0,0,-8,-8,0,0,-6]} 1. d4 {[%emt 0:00:03]} Nf6 {[%emt 0:00:01]} 2. c4 {[%emt 0:00:09]} g6 {[%emt 0:00:02]} 3. Nc3 {[%emt 0:00:21]} Bg7 {[%emt 0:00:01]} 4. e4 {[%emt 0:01:01]} d6 {[%emt 0:00:06]} 5. Be2 {[%emt 0:02:04]} O-O {[%emt 0:00:07]} 6. Nf3 {[%emt 0:00:06]} e5 {[%emt 0:00:05]} 7. O-O {[%emt 0:00:24]} h6 {[%emt 0:00:16]} 8. Rb1 {[%emt 0:02:49]} Nbd7 {[%emt 0:14:54]} 9. Qc2 {[%emt 0:11:17]} a5 {[%emt 0:02:30] White is slightly better.} 10. Rd1 {[%emt 0:00:36]} Re8 {[%emt 0:00:57]} 11. dxe5 {[%emt 0:09:04]} dxe5 {[%emt 0:00:13]} 12. Nb5 {[%emt 0:00:04] White is much more active.} b6 {[%emt 0:03:50] [#]} 13. c5 $1 {[%emt 0:09:14]} bxc5 {[%emt 0:00:20]} 14. Be3 {[%emt 0:00:04]} Bb7 {[%emt 0:12:54]} 15. Nd2 {[%emt 0:00:06][%cal Ob5c3][%mdl 1024] White has compensation.} (15. Bxc5 $2 {loses.} Bxe4 (15... Nxe4 16. Be3 $14) 16. Qc1 Bxb1 17. Qxb1 c6 $19) 15... a4 {[%emt 0:06:43]} 16. f3 {[%emt 0:03:20][%cal Ob2b3]} Bf8 {[%emt 0:11:45]} 17. b3 {[%emt 0:06:54]} c6 {[%emt 0:00:20] [#] Hoping for ...axb3.} 18. Nc3 {[%emt 0:00:15]} axb3 {[%emt 0:00:35]} 19. axb3 {[%emt 0:01:16] The position is equal.} Qc7 {[%emt 0:06:00]} 20. Na4 {[%emt 0:02:51][%cal Og2g3]} Nh5 {[%emt 0:02:00]} 21. g3 {[%emt 0:09:05][%cal Od2c4] Repels Nf4} Ng7 {[%emt 0:00:33]} 22. Bc4 {[%emt 0:10:09]} ({Reject} 22. Nxc5 Nxc5 23. Bxc5 Bxc5+ 24. Qxc5 Ne6 $15) 22... Ne6 {[%emt 0:04:15]} 23. Bxe6 {[%emt 0:00:27]} Rxe6 {[%emt 0:00:01]} 24. Nc4 {[%emt 0:00:08]} Ba6 {[%emt 0:00:45]} 25. Rxd7 {[%emt 0:03:21]} Qxd7 {[%emt 0:00:01]} 26. Nab6 {[%emt 0:00:24] A dynamic duo of knights.} Qb7 {[%emt 0:01:26]} 27. Nxa8 {[%emt 0:00:19]} Bxc4 {[%emt 0:03:31]} 28. Qxc4 {[%emt 0:01:32]} Qxa8 {[%emt 0:00:04]} 29. Rd1 {[%emt 0:01:57]} Qa5 {[%emt 0:05:53] Weighted Error Value: White=0.08 (flawless) /Black=0.07 (flawless) .  Inaccurate:     	White=3     	Black=1      OK:         	White=10    	Black=10     Best:        	White=1     	---} 1/2-1/2